{"text_format":"3","workbook":"xlsx","n_sheets":13,"sheets":["Kezdés","Alapok","Bevezetés a függvényhasználatba","ÁTLAG","MIN és MAX","Dátum és idő","Szöveg és számok összefűzése","HA utasítások","FKERES","Feltételes függvények","Függvényvarázsló","Képlethibák","További információ"],"not_rendered":{"images":32,"defined_names":21},"read":"whole","date_system":"1900"}

{"sheet":"Kezdés","index":0,"n_rows":4,"n_cols":1,"rows_kept":4}
[]
["Ismerkedés a képletekkel"]
["Mindössze néhány lépésben megtanulhatja, hogy hogyan hozhat létre képleteket és függvényeket az Excelben, a világ leghatékonyabb táblázatkezelő appjában."]
["A CTRL+HOME billentyűkombinációval léphet a lap tetejére. A CTRL+PAGE DOWN billentyűkombinációt lenyomva elindíthatja a bemutatót."]

{"sheet":"Alapok","index":1,"n_rows":43,"n_cols":10,"rows_kept":43}
["Alapok: matematikai műveletek az Excellel"]
["Az Excelben beépített függvény használata nélkül is végezhet összeadási, kivonási, szorzási és osztási műveleteket. Ehhez csupán a következő műveleti jeleket kell használnia: +, -, *, /. Minden képlet egy egyenlőségjellel (=) kezdődik.\n",null,"Használandó számok:",null,"Művelet:","Képletek:","Válaszok:"]
["Összeadáshoz jelölje ki az F3 cellát, írja be a =C3+C4 képletet, majd nyomja le az Enter billentyűt. \n",null,1,null,"Összeadás (+) ",null,{"$f":"C3+C4","v":3}]
["Kivonáshoz jelölje ki az F4 cellát, írja be a =C3-C4 képletet, majd nyomja le az Enter billentyűt. ",null,2,null,"Kivonás (-) ",null,{"$f":"C3-C4","v":-1}]
["Szorzáshoz jelölje ki az F5 cellát, írja be a =C3*C4 képletet, majd nyomja le az Enter billentyűt.\n",{"$nulls":3},"Szorzás (*) ",null,{"$f":"C3*C4","v":2}]
["Osztáshoz jelölje ki az F6 cellát, írja be a =C3/C4 képletet, majd nyomja le az Enter billentyűt.\n",{"$nulls":3},"Osztás (/) ",null,{"$f":"C3/C4","v":0.5}]
["Próbálja ki: Ha a C3 és a C4 cellában módosítja a számokat, láthatja, ahogyan a képlet eredményei automatikusan megváltoznak.",{"$nulls":3},"Hatványra emelés (^) ",null,{"$f":"C3^C4","v":1}]
["KIEGÉSZÍTŐ TANANYAG: Hatványra is emelhet értékeket, a karát (^) szimbólum használatával, például: =A1^A2. A beírásához nyomja le a Shift+6 billentyűparancsot. Az F7 cellába írja be a következőt: =C3^C4."]
["Haladjon lefelé, ha kíváncsi a részletekre"]
["Következő lépés"]
["További információ a képletekről, cellákról és tartományokról"]
["Az Excel sorokba és oszlopokba csoportosított, egyéni cellákból áll. A sorokat számok, az oszlopokat pedig betűk azonosítják. A programban több mint 1 millió sor és több mint 16 000 oszlop található, Ön pedig bármelyikükben elhelyezhet képleteket. \n"]
["A képletek cellahivatkozásokat, cellahivatkozás-tartományokat, operátorokat és állandókat tartalmazhatnak. A következők mind egy-egy példa a képletekre:\n\n=A1+B1\n=10+20\n=SZUM(A1:A10)\n\n"]
["Látható, hogy a fenti harmadik példában a SZUM függvényt használtuk. A függvények olyan előre elkészített parancsok, amelyek egy vagy több értéket alapul véve elvégeznek valamilyen számítást, és visszaadják annak eredményét. A SZUM függvény például összegzi az Ön által megadott cellahivatkozásokat vagy cellatartományokat. Ebben a példában az A1–A10 cellák összegzését végzi el. Az Excelben 400-nál is több függvény található, amelyeket a Képletek lapon fedezhet fel.\n"]
["A függvényt tartalmazó képletek egyenlőségjellel kezdődnek, amelyet a függvény neve követ a hozzá tartozó, zárójelek között szereplő argumentumokkal (a függvény által a számításhoz használt értékekkel). \n"]
["A képletek az Enter billentyű lenyomásával erősíthetők meg. Amint így tesz, megtörténik a képlet kiszámítása, és megjelenik az eredmény a cellában. Magát a képletet úgy tekintheti meg, hogy ránéz a képletsávra a menüszalag alatt, vagy az F2 billentyűt lenyomva Szerkesztés módba lép, amelyben láthatóvá válik a képlet a cellában. Nyomja le ismét az Enter billentyűt a képlet véglegesítéséhez és az eredmény kiszámításához.\n\n"]
["Néhány magyarázat a képletekről"]
["A =10+20 képletben a 10 és a 20 az állandók, a + jel pedig az operátor."]
["A =SZUM(A1:A10) képletben a SZUM a függvény neve, a zárójelek között a képlet argumentumai szerepelnek, az A1:A10 pedig a függvény cellahivatkozása."]
["A =SZUM(A1:A10;C1:C10) képletben a SZUM a függvény neve, a zárójelek között a képlet argumentumai szerepelnek, az A1:A10;C1:C10 pedig a függvény pontosvesszővel elválasztott cellahivatkozásai."]
["JÓ TUDNI: Az állandók a cellákba vagy képletekbe beírt értékek. Mivel a =10+20 eredménye megegyezhet az =A1+B1 eredményével, az állandók használata nem jó megoldás. Miért? Mert az állandó nehezen látható anélkül, hogy kijelölné a cellát, és megkeresné azt. Emiatt nehézkes lehet a későbbi módosítása. Sokkal egyszerűbb, ha az állandókat cellákba helyezi, ahol azok könnyedén módosíthatók, és egyszerűen lehet rájuk hivatkozni a képletekben.\n\nPéldául: Jelölje ki alább a 12 értéket tartalmazó sárga cellát. Láthatja, hogy a SZUM függvényt használtuk egy cellatartománnyal. A „4” vagy a „8” értéket nem közvetlenül írtuk be a képletbe. \n"]
["Előző"]
["Következő"]
["További információ a weben"]
["Az Excel használata számológépként"]
["A képletek áttekintése az Excelben"]
["Az Excel függvényeinek kategória szerinti listája "]
["Az Excel függvényeinek betűrendes listája "]
["Ingyenes online Excel-képzés"]
{"$rows_empty":10}
[{"$nulls":9},"Értékek"]
[{"$nulls":9},4]
[{"$nulls":9},8]
[{"$nulls":9},{"$f":"SUM(J41:J42)","v":12}]

{"sheet":"Bevezetés a függvényhasználatba","index":2,"n_rows":51,"n_cols":7,"rows_kept":51}
["Bevezetés a függvények használatába"]
["A függvényekkel számos művelet végrehajtható: többek között matematikai műveletek, értékek keresése vagy akár dátumok és időpontok kiszámítása is elvégezhető velük. Most bemutatunk néhány módszert arra, hogy hogyan adhat össze értékeket a SZUM függvénnyel.",null,"Gyümölcs","Összeg",null,"Húsáru","Összeg"]
["A gyümölcsökhöz tartozó Mennyiség oszlopban (a D7 cellába) írja be a =SZUM(D3:D6) képletet, vagy írja be a =SZUM( karakterláncot, jelölje ki a kívánt tartományt az egérrel, majd nyomja le az Enter billentyűt. Ezzel összegzi a D3, a D4, a D5 és a D6 cellában lévő értékeket. A helyes válasz a 170.\n",null,"Alma",50,null,"Marha",50]
["Most próbálja ki az AutoSzum funkciót. Jelölje ki a Húsáru oszlop alatti cellát (a G7 cellát), és válassza a Képletek > AutoSzum > SZUM lehetőséget. Láthatja, ahogyan az Excel automatikusan beírja Önnek a képletet. Nyomja le az Enter billentyűt a megerősítéshez. Az AutoSzum funkció az összes leggyakoribb függvényt tartalmazza.\n",null,"Narancs",20,null,"Csirke",30]
["Íme egy hasznos billentyűparancs. Jelölje ki a D15 cellát, és nyomja le az Alt = billentyűparancsot, majd az Enter billentyűt. Ezzel automatikusan beírja a SZUM függvényt.",null,"Banán",60,null,"Sertés",10]
["Haladjon lefelé, ha kíváncsi a részletekre",null,"Citrom",40,null,"Hal",50]
["KIEGÉSZÍTŐ TANANYAG\nPróbálja ki a DARAB függvényt a már kipróbált módszerek valamelyikével. A DARAB függvénnyel megállapítható, hogy hány cella szerepel egy számokat tartalmazó tartományban.",null,"SZUM > ",{"$f":"SUM(D3:D6)","v":170},null,"SZUM > "]
["Következő lépés"]
["További információ a függvényekről",null,"Tétel","Összeg",null,"Tétel","Összeg"]
["Lépjen a Képletek lapra, és tallózzon a Függvénytár a különböző, kategóriák (például Szöveg, Dátum és idő stb.) szerint felsorolt függvények között. A Függvény beszúrása funkció lehetővé teszi, hogy név alapján keressen a függvények között, és elindítson egy képletvarázslót, amely segíthet a képlet létrehozásában. \n\nAmikor elkezdi beírni egy függvény nevét, az = beírása után az Excel elindítja az Intellisense funkciót, amely megjeleníti az Ön által beírt betűvel kezdődő összes függvényt. Amikor megtalálja a kívánt függvényt, nyomja le a Tab billentyűt. Ekkor az Excel automatikusan beírja a függvény nevét, és a nyitó zárójelet is beírja Ön helyett. Ezenkívül az opcionális és a kötelező argumentumokat is megjeleníti. \n\n\n\nMost vessünk egy pillantást néhány függvény felépítésére. A SZUM függvény szerkezete az alábbihoz hasonló:",null,"Kenyér",50,null,"Kenyér",50]
["Ha a SZUM függvény beszélni tudna, a következőt mondaná: a D35–D38 cellák értékeinek, valamint a H oszlop értékeinek összegzését adja vissza. A SZUM a függvény neve, a D35:D38 az első tartományargumentum, amely majdnem mindig kötelező, a H:H pedig a második tartományargumentum. Utóbbi kettő pontosvesszővel van egymástól elválasztva. Most próbáljon ki egy olyan képletet, amely nem használ egy argumentumot sem.\n",null,"Fánk",100,null,"Fánk",100]
["A MA függvény a mai dátumot adja vissza. A dátum automatikusan frissülni fog, amikor az Excel újraszámítja a képletet.",null,"Sütemény",40,null,"Sütemény",40]
["VESSEN ERRE EGY PILLANTÁST\nJelölje ki ezeket a cellákat. Ezután az Excel jobb alsó sarkában keresse meg a Összeg: 170 feliratot az alsó sávon. Ez a sáv az úgynevezett állapotsor, ahol szintén gyorsan megtalálhatja egy kijelölt cella vagy tartomány összegét és más adatait. ",null,"Torta",50,null,"Torta",50]
["FONTOS RÉSZLET\nKattintson duplán erre a cellára. A képlet végén szerepel a 100 érték. Bár szerepeltethet számokat ilyen formában a képletekben, ezt csak legvégső esetben tegye. Az ilyen számokat állandóknak nevezzük, és könnyű róluk megfeledkezni. Helyette inkább hivatkozzon egy másik cellára, például az F51-re. Ha így tesz, feltehetően nem fogja szem elől téveszteni. ",null,"Pite",20,null,"Pite",20]
["További információ a weben",null,"SZUM > ",null,null,"DARAB >"]
["Minden a SZUM függvényről"]
["Számok összeadása az AutoSzum funkcióval"]
["Minden a DARAB függvényről"]
["Ingyenes online Excel-képzés"]
["Vissza a lap tetejére"]
["Következő lépés"]
{"$rows_empty":12}
[null,null,"Gyümölcs","Összeg"]
[null,null,"Alma",50]
[null,null,"Narancs",20]
[null,null,"Banán",60]
[null,null,"Citrom",40]
[null,null,"SZUM > ",{"$f":"SUM(D35:D38)","v":170}]
[]
[]
[]
[]
[null,null,"Tétel","Mennyiség"]
[null,null,"Autó",20]
[null,null,"Teherautó",10]
[null,null,"Kerékpár",10]
[null,null,"Korcsolya",40]
[]
[{"$nulls":3},"Összeg:",null,"További érték","Új összeg"]
[{"$nulls":3},{"$f":"SUM(D45:D48,100)","v":180},null,100,{"$f":"SUM(D45:D48,F51)","v":180}]

{"sheet":"ÁTLAG","index":3,"n_rows":15,"n_cols":7,"rows_kept":15}
["Az ÁTLAG függvény"]
["Az ÁTLAG függvénnyel kiszámíthatja az egy cellatartományban szereplő számok átlagát.",null,"Gyümölcs","Mennyiség",null,"Húsáru","Mennyiség"]
["Jelölje ki a D7 cellát, majd az AutoSzum használatával vegyen fel egy ÁTLAG függvényt.",null,"Alma",50,null,"Marha",50]
["Most jelölje ki a G7 cellát, és írjon be egy ÁTLAG függvényt a következőképpen: =ÁTLAG(G3:G6). ",null,"Narancs",20,null,"Csirke",30]
["A D15 cellában használhatja az AutoSzum funkciót, vagy beírhat egy másik ÁTLAG függvényt. ",null,"Banán",60,null,"Sertés",10]
["VESSEN ERRE EGY PILLANTÁST\nHa kijelöl egy számtartományt, az állapotsoron azonnal láthatja a benne szereplő számok átlagát.\n",null,"Citrom",40,null,"Hal",50]
["Az előző lap aktiválása",null,"ÁTLAG >",null,null,"ÁTLAG >"]
["Továbblépés a következő lapra"]
["KIEGÉSZÍTŐ TANANYAG\nItt kipróbálhatja a MEDIÁN vagy a MÓDUSZ üggvény használatát. \n\nA MEDIÁN függvénnyel az adatkészlet középértéke, a \nMÓD függvénnyel pedig az adatkészletben leggyakrabban előforduló érték állapítható meg.\n",null,"Tétel","Mennyiség",null,"Tétel","Mennyiség"]
["Hivatkozások a weben található további információkra",null,"Kenyér",50,null,"Kenyér",50]
["További tudnivalók internetes forrásokból az ÁTLAG függvényről",null,"Fánk",100,null,"Fánk",100]
["További tudnivalók internetes forrásokból a MEDIÁN függvényről",null,"Sütemény",40,null,"Sütemény",40]
["További tudnivalók internetes forrásokból a MÓDUSZ függvényről",null,"Torta",50,null,"Torta",50]
["További tudnivalók internetes forrásokból ingyenes Excel-képzésekről",null,"Pite",20,null,"Pite",20]
[null,null,"ÁTLAG >"]

{"sheet":"MIN és MAX","index":4,"n_rows":15,"n_cols":7,"rows_kept":15}
["A MIN és a MAX függvény"]
["A MIN függvénnyel megállapíthatja, hogy melyik a legkisebb szám egy cellatartományban.",null,"Gyümölcs","Mennyiség",null,"Húsáru","Mennyiség"]
["A MAX függvénnyel megállapíthatja, hogy melyik a legnagyobb szám egy cellatartományban.",null,"Alma",50,null,"Marha",50]
["Jelölje a D7 cellát, majd az AutoSzum varázslóval vegyen fel egy MIN függvényt.\n",null,"Narancs",20,null,"Csirke",30]
["Most jelölje ki a G7 cellát, és írjon be egy MAX függvényt a következőképpen: =MAX(G3:G6).\n",null,"Banán",60,null,"Sertés",10]
["A D15 cellában használhatja az AutoSzum varázslót, vagy beírással megadhat egy MIN vagy MAX függvényt. \n",null,"Citrom",40,null,"Hal",50]
["További információ a weben\n",null,"MIN >",null,null,"MAX >"]
["Minden a MIN függvényről"]
["Minden a MAX függvényről",null,"Tétel","Mennyiség",null,"Tétel","Mennyiség"]
["Ingyenes online Excel-képzés",null,"Kenyér",50,null,"Kenyér",50]
["JÓ TUDNI\nA MIN vagy a MAX függvényt több tartománnyal vagy értékkel használva megjelenítheti az értékek közül a nagyobbat vagy a kisebbet, például =MIN(A1:A10;B1:B10) vagy =MAX(A1:A10;B1), ahol a B1 cella egy küszöbértéket tartalmaz, amely lehet például 10. Ebben az esetben a képlet soha nem ad vissza 10-nél kisebb eredményt.\n",null,"Fánk",100,null,"Fánk",100]
[null,null,"Sütemény",40,null,"Sütemény",40]
[null,null,"Torta",50,null,"Torta",50]
[null,null,"Pite",20,null,"Pite",20]
[null,null,"MIN vagy MAX >",{"$nulls":3},{"$f":"MIN(G10:G14,10)","v":10}]

{"sheet":"Dátum és idő","index":5,"n_rows":47,"n_cols":6,"rows_kept":47,"merged":[[4,2,4,3],[26,2,26,3],[30,2,30,3],[44,2,44,3]]}
["Dátum típusú függvények"]
["Az Excel képes megjeleníteni az aktuális dátumot, a számítógép területi beállításai alapján. Dátumok hozzáadására és kivonására is van lehetőség."]
["Próbálja ki a MA függvényt, amely a mai dátumot adja vissza. Ezek élő, illetve maguktól frissülő függvények, így amikor Ön holnap megnyitja a munkafüzetet, már a holnapi dátum fog szerepelni bennük. A D6 cellába írja be a következőt: =MA(). \n"]
["Dátumok kivonása – Ha beírja a következő születésnapja dátumát a D7 cellába éééé.hh.nn formátumban, az Excel a =D7-D6 használatával a D8 cellában megjeleníti, hogy hány nap van hátra a nagy napig.\n"]
["Dátumok összeadása – Tegyük fel, hogy tudni szeretné, hogy mikor esedékes egy számla, vagy mikor kell visszavinnie egy könyvet a könyvtárba. Ennek kiderítéséhez hozzá kell adnia a kívánt napok számát egy dátumhoz. A D10 cellában adjon meg egy véletlenszerű számot a napok számaként. A D11 cellába felvettük a =D6+D10 képletet, amely kiszámítja, hogy hány nap van hátra a határidőig a mai naptól számolva.\n",null,"Dátum típusú függvények"]
["JÓ TUDNI\nAz Excel a dátumokat és az időpontokat az 1900. január 1-től eltelt napok száma alapján tárolja. Az időpontokat egy nap törtrészeiként tárolja, amelyhez a perceket veszi alapul. Így a 2017.01.01. 12:30 időpont tárolása valójában a következőként történik: 42736.5208. Ha az idő vagy a dátum ehhez hasonló számként jelenik meg, a Ctrl+1 billentyűparancsot lenyomva, majd a Szám lehetőséget választva megadhatja a kívánt dátum- vagy időformátumot. ",null,"Mai dátum:",null,null,{"$f":"IF(D6=TODAY(),\"Sikerült!\",\"\")","v":""}]
["FONTOS RÉSZLET\nHa azt szeretné, hogy az Excel ne jelenítsen meg negatív számot, mivel még nem adta meg a születésnapját, használhat egy HA utasítást a következőképpen: =HA(D7=\"\";\"\";D7-D6), amely ezt jelenti: „HA D7 semmivel egyenlő, ne jelenjen meg semmi, ellenkező esetben a D7 mínusz D6 eredménye legyen látható\".\n",null,"Az Ön születésnapja:"]
["Idő típusú függvények",null,"A születésnapig hátralévő napok száma:",{"$f":"D7-D6","v":0}]
["Az Excel képes megjeleníteni az aktuális időt, a számítógép területi beállításai alapján. Időpontok hozzáadására és kivonására is van lehetőség. Előfordulhat például, hogy nyomon kell követnie, hogy egy alkalmazott hány órát dolgozott az egyes heteken, és ki kell számítania az illető fizetését és túlóradíját.\n"]
["A D28 cellába írja be a =MOST() képletet, amivel megkapja az aktuális időt. Ez minden alkalommal frissülni fog, amikor az Excel kiszámítja a képletet. Ha meg kell változtatnia az időformátumot, nyomja le a Ctrl+1 billentyűparancsot, válassza a Szám > Idő lehetőséget, és válassza ki a kívánt formátumot.\n",null,"Türelmi időszak napjai:"]
["Időpontok közötti órák számának összeadása – A D36 cellába beírtuk a =((D35-D32)-(D34-D33))*24 képletet, amely kiszámítja valakinek a kezdési és a befejezési időpontját, majd kivonja az ebéddel töltött időt. A képlet végén szereplő *24 az Excel által a nap törtrészeként látott értéket átalakítja órákká. A cellát Önnek azonban számként kell formáznia. Ehhez válassza a Kezdőlap > Formátum > Cellák (Ctrl+1) > Szám > Szám lehetőséget, és adja meg a 2 értéket a Tizedesjegyek legördülő listában.\n\n",null,"Számla esedékessége:",{"$f":"D6+D10","v":"00:00:00"}]
["Ha ez a képlet beszélni tudna, ezt mondaná: „Vegyük alapul a Befejezés értékét, és vonjuk ki azt a Kezdés értékéből, majd vonjuk ki az Ebéd kezdete/vége időpontjaiból, majd az eredményt 24-gyel megszorozva alakítsuk át az Excel törtként megadott időpontját órákra”, azaz: =((Befejezés - Kezdés)-(Ebéd vége - Ebéd kezdete))*24."]
["Előző"]
["Következő"]
["További információ a weben"]
["Minden a MA függvényről"]
["Minden a MOST függvényről"]
["Minden a DÁTUM függvényről"]
["Ingyenes online Excel-képzés"]
{"$rows_empty":7}
[null,null,"Idő típusú függvények"]
[null,null,"Aktuális idő:"]
[]
[]
[null,null,"Munkaórák száma naponta"]
[null,null,"Kezdés:","08:00:00"]
[null,null,"Ebéd kezdete:","12:00:00"]
[null,null,"Ebéd vége:","13:00:00"]
[null,null,"Befejezés:","17:00:00"]
[null,null,"Munkaórák összesen:",{"$f":"((D35-D32)-(D34-D33))*24","v":8.000000000000002}]
{"$rows_empty":8}
[null,null,"Statikus dátum és idő"]
[null,null,"Dátum:","2017-09-27"]
[null,null,"Időpont:","08:52:00"]

{"sheet":"Szöveg és számok összefűzése","index":6,"n_rows":37,"n_cols":6,"rows_kept":37,"merged":[[26,2,26,3],[30,2,30,3],[34,2,34,3]]}
["Különböző cellákból származó szövegek összekapcsolása"]
["Az Excelben sokszor lehet szükség arra, hogy különböző cellákban található szövegeket kapcsoljon össze. A példában az a nagyon gyakori helyzet szerepel, amelyben vezeték- és utóneveket kell összekapcsolnia Vezetéknév, Utónév formában, illetve teljes névként. Szerencsére az Excelben mindez lehetséges az és (&) jel használatával, amelyet a AltGr+& billentyűparancsot lenyomva írhat be.\n",null,"Utónév","Vezetéknév","Vezetéknév, Utónév","Teljes név"]
["A vezeték- és utónevek összekapcsolásához írja be az E3 cellába a következőt: =D3&C3. \n",null,"Barbara","Kovács",{"$f":"D3&\", \"&C3","v":"Kovács, Barbara"},{"$f":"C3&\" \"&D3","v":"Barbara Kovács"}]
["Az eredményül kapott KovácsBarbara karakterlánc azonban nem tűnik teljesen helyesnek. Fel kell venni még egy vesszőt és egy szóközt. Ehhez idézőjelek használatával létrehozunk egy új szöveges karakterláncot. Ez alkalommal írja be a következőt: =D3&\", \"&C3. A képlet &\", \"& része gondoskodik a cellákban lévő szöveg, valamint egy vessző és egy szóköz összekapcsolásáról.\n",null,"Bálint","Balla"]
["A teljes név létrehozásához össze kell kapcsolni a vezeték- és az utónevet, egy vessző nélküli szóköz használatával. Az F3 cellába írja be a következőt: =C3&\" \"&D3.\n",null,"József","Mészáros"]
["Haladjon lefelé, ha kíváncsi a részletekre",null,"Margit","Takács"]
["Következő",null,"Sándor","Magyar"]
["Szöveg és számok együttes használata",null,"Mihály","Fodor"]
["Most a & szimbólummal szöveg és szöveg helyett szöveg és számok összekapcsolását fogjuk elvégezni.\n\nVessen egy pillantást a C28:D29 cellatartományra. Látja, hogy a dátum és az időpontok külön cellákban szerepelnek? Összekapcsolhatja őket a & szimbólummal, mint ahogyan az a C32:C33 cellák esetében látható, de ez nem tűnik helyesnek, ugye? Sajnos az Excel nem tudja, hogy Ön hogyan szeretné formázni a számokat, ezért a legegyszerűbb formátumot használja, amely ebben az esetben a dátumérték. Kifejezetten meg kell adni az Excelnek, hogy hogyan legyen formázva a képlet számot tartalmazó része, hogy az eredményül kapott szöveges karakterlánc a kívánt módon jelenjen meg. Ezt a SZÖVEG függvény és egy formátumkód megadásával teheti meg.",null,"Ferenc","Horváth"]
["A C36 cellába írja be a következőt: =C28&\" \"&SZÖVEG(D28;\"éééé.hh.nn.\"). A éééé.hh.nn. a Év.Hónap. Nap  formátumnak (például 2017.09.25.) megfelelő egyesült államokbeli formátumkód.\n",null,"Izabella","Gyenes"]
["A C37 cellába írja be a következőt: =C29&\" \"&SZÖVEG(D29;\"ÓÓ:PP\"). Az ÓÓ:PP az Óra:Perc formátumnak (például 1:30) megfelelő egyesült államokbeli formátumkód.\n\n"]
["VESSEN ERRE EGY PILLANTÁST\nA képletek, különösen a nagy méretűek, néha nehezen olvashatók, szóközökkel azonban feloszthatja őket az egyes részeikre, a következőképpen:\n\n=C28 & \" \" & SZÖVEG(D28;\"éééé.hh.nn.\")"]
["ÉRDEMES TUDNI\nHa nem tudja, hogy milyen formátumkódot kell használnia, a Ctrl+1 billentyűparancsot lenyomva, majd a Szám lehetőséget választva bármelyik cellát formázhatja. Ezután válassza az Egyéni beállítást. A megjelenő formátumkódot visszamásolhatja a képletbe."]
["További információ a weben"]
["Minden a SZÖVEG függvényről"]
["Szöveg és számok összefűzése"]
["Ingyenes online Excel-képzés"]
{"$rows_empty":9}
[null,null,"Szöveg és számok használata"]
[null,null,"Mai dátum:",{"$f":"TODAY()","v":"2019-08-14"}]
[null,null,"Aktuális idő:",{"$f":"NOW()","v":43691.58121967593}]
[]
[null,null,"Szöveg és számok összekapcsolása"]
[null,null,{"$f":"C28&\" \"&D28","v":"Mai dátum: 43691"}]
[null,null,{"$f":"C29&\" \"&D29","v":"Aktuális idő: 43691,5812196759"}]
[]
[null,null,"Szöveg és számok formázása"]
[null,null,{"$f":"C28 &\" \"& TEXT(D28,\"éééé.hh.nn.\")","v":"Mai dátum: 2019.08.14."}]
[null,null,{"$f":"C29&\" \"&TEXT(D29,\"ÓÓ:PP\")","v":"Aktuális idő: 13:56"}]

{"sheet":"HA utasítások","index":7,"n_rows":37,"n_cols":6,"rows_kept":37,"merged":[[7,2,7,3]]}
["HA utasítások"]
["A HA utasítások lehetővé teszik a feltételek logikai összehasonlítását. A HA utasítások általában arról szólnak, hogy ha az egyik feltétel igaz, akkor történjen valami, ellenkező esetben pedig történjen valami más. A képletek szöveget, értékeket, de akár további számításokat is visszaadhatnak."]
["A D9 cellába írja be a következőt: =HA(C9=\"Alma\";IGAZ;HAMIS). A helyes válasz az IGAZ. \n"]
["Másolja a D9 cella tartalmát a D10 cellába. A válasz itt a HAMIS, hiszen a narancs nem alma.\n"]
["Próbálkozzon egy másik példával a D12 cellában lévő képletet alapul véve. Kezdésként a következő képletet használta: =HA(C12<100;\"Kisebb mint 100\";\"Nagyobb vagy egyenlő mint 100\"). Mi történik akkor, ha egy 100-nál nagyobb számot ír a C12 cellába?\n"]
["FONTOS INFORMÁCIÓ\nAz IGAZ és a HAMIS a többi szótól eltérően működik az Excel-képletekben abban az értelemben, hogy nem kell idézőjelek között szerepelniük, és hogy az Excel automatikusan nagybetűssé alakítja őket. A számoknak sem kell idézőjelek között szerepelnie. A normál szöveget (például Igen vagy Nem) idézőjelek közé kell tenni, a következőképpen: \n=HA(C9=“Apple“;„Igen“;„Nem“)"]
["Haladjon lefelé, ha kíváncsi a részletekre"]
["Következő",null,"HA utasítások"]
["HA utasítás egy másik függvénnyel",null,"Alma"]
["A HA utasítások további számítások végrehajtását is kényszeríthetik egy bizonyos feltétel teljesülése esetén. Most egy cella kiértékelésével azt fogjuk kideríteni, hogy szükség van-e áfa felszámítására, valamint annak kiszámítására, hogy a feltétel igaz-e.\n",null,"Narancs"]
["Az F33 cellába beírtuk a =HA(E33=\"Igen\";F31*Áfa;0) képletet, amelyben az áfát névvel ellátott tartományokkal adtuk meg, 0,0825 értékkel. A képletünk szerint ha az E33 cella értéke Igen, akkor az F31 cellát meg kell szorozni az áfa értékével, ellenkező esetben az eredmény 0 lesz.\n\nHa az E33 cellában az Igen értéket Nem értékre változtatja, láthatja, ahogyan a számítás is módosul."]
["Ezután felvettünk egy HA utasítást a szállítás kiszámítására, ha ez szükséges. Az F35 cellában a következőt fogja látni: =HA(E35=\"Igen\";SZUM(D28:D29)*1,25;0). Ez a következőt jelenti: „Ha az E35 cella értéke Igen, akkor a fenti táblázat Mennyiség oszlopának összegét meg kell szorozni 1,25-tel, ellenkező esetben az eredmény 0 lesz.”\n",null,50,{"$f":"IF(C12<100,\"Kisebb mint 100\",\"Nagyobb vagy egyenlő mint 100\")","v":"Kisebb mint 100"}]
["Ezután módosítsa a képletben szereplő 1,25 értéket „Szállítás” értékre az F35 cellában. Ahogyan elkezd gépelni, az Excel automatikus javítási funkciója megkeresi Önnek ezt a nevet. Amikor ez megtörténik, nyomja le a Tab billentyűt a beírásához. Ez egy névvel ellátott tartományokkal, amelyet a Képletek > Név megadása elemet választva adtunk meg. Mostantól ha bármikor módosítania kell a szállítási költséget, azt csak egy helyen kell megtennie ahhoz, hogy a Szállítás nevet használhassa mindenhol a munkafüzetben.\n\n"]
["JÓ TUDNI\nKéplet létrehozásakor az Excel automatikusan színes szegélyekkel látja el a képletben hivatkozott esetleges tartományokat, a képletben pedig a megfelelő tartományok ugyanazt a színt kapják. Kipróbálhatja ezt úgy, hogy kijelöli az F33 cellát, és lenyomja az F2 billentyűt a képlet szerkesztéséhez."]
["SZAKÉRTŐI TIPP\nA névvel ellátott tartományokkal egyetlen helyen definiálhatja a kifejezéseket vagy értékeket, majd újra felhasználhatja őket egy munkafüzeten belül. A munkafüzet összes, névvel ellátott tartományának megtekintéséhez válassza a Képletek > Névkezelő lehetőséget. Ide kattintva többet is megtudhat.\n"]
["Előző"]
["Következő"]
["További információ a weben"]
["Minden a HA függvényről"]
["Minden a HAELSŐIGAZ függvényről"]
["Speciális HA utasítások"]
["Ingyenes online Excel-képzés"]
[]
[]
[]
[]
[null,null,"Tétel","Mennyiség","Költség","Összesen"]
[null,null,"Bigyó",2,{"v":9.760711585683554,"d":"9.76 Ft"},{"$f":"'HA utasítások'!$E$28:$E$29*'HA utasítások'!$D$28:$D$29","v":{"v":19.521423171367108,"d":"19.52 Ft"}}]
[null,null,"Izé",3,{"v":3.4189202461080024,"d":"3.42 Ft"},{"v":10.256760738324008,"d":"10.26 Ft"}]
[]
[{"$nulls":3},"Részösszeg",{"$f":"SUM('HA utasítások'!$E$28:$E$29)","v":{"v":13.179631831791557,"d":"13.18 Ft"}},{"$f":"SUM('HA utasítások'!F28:F29)","v":{"v":29.778183909691116,"d":"29.78 Ft"}}]
[]
[{"$nulls":3},"Áfa?","Igen",{"$f":"IF(E33=\"Igen\",F31*Áfa,0)","v":{"v":2.456700172549517,"d":"2.46 Ft"}}]
[]
[{"$nulls":3},"Szállítás?","Igen",{"$f":"IF(E35=\"Igen\",SUM(D28:D29)*1.25,0)","v":{"v":6.25,"d":"6.25 Ft"}}]
[]
[{"$nulls":3},"Összesen",null,{"$f":"SUM(F33,F31,F35)","v":{"v":38.48488408224063,"d":"38.48 Ft"}}]

{"sheet":"FKERES","index":8,"n_rows":43,"n_cols":7,"rows_kept":43}
["FKERES"]
["Az FKERES az egyik leggyakrabban használt függvény az Excelben (és egyben a mi egyik kedvencünk is). Az FKERES függvénnyel rákereshet egy értékre az egyik bal oldali oszlopban, majd találat esetén az adatokat egy másik oszlopban láthatja a jobb oldalon. Az FKERES a következőt jelenti:\n"]
["=FKERES(A1;B:C;2;HAMIS)"]
["A keresett érték"]
["Ha megtalálja, hány oszlopnyival jobbra szeretne értéket megjeleníteni?"]
["A keresés helye"]
["Pontos vagy megközelítő egyezést szeretne?"]
["A D22 cellába írja be a következőt: =FKERES(C22;C17:D20;2;HAMIS). Az almák esetében a helyes válasz az 50. Az FKERES rákeresett az Almák értékre, megtalálta azt, majd egy oszloppal jobbra visszaadta a mennyiséget.\n\n"]
["Most próbálja ki Ön is a Húsárú szakaszban, a G22 cellában. A végén a képletnek így kell kinéznie: =FKERES(F22;F17:G20;2;HAMIS).\n\n"]
["KÍSÉRLET\nPróbálkozzon más elemek kijelölésével a legördülő listákban. Figyelje meg, ahogyan az eredménycellák azonnal frissülnek az új értékekkel."]
["Haladjon lefelé, ha kíváncsi a részletekre"]
["Következő"]
["FKERES és #HIÁNYZIK"]
["Elkerülhetetlenül előállhat az a helyzet, hogy az FKERES nem találja a keresett értéket, és hibát (#HIÁNYZIK) ad vissza. Néha ennek az az oka, hogy a keresési érték egyszerűen nem létezik, de az is lehetséges, hogy a hivatkozáscellának még nincs értéke.\n"]
["Ha biztosan tudja, hogy a keresési érték létezik, de el szeretné rejteni a hibát, ha a keresési cella üres, egy HA utasítást kell használnia. Ebben az esetben a meglévő FKERES képletünket a következőképpen ágyazzuk a HA utasításba a D43 cellában:\n\n=HA(C43=\"\";\"\";FKERES(C43;C37:D41;2;HAMIS))\n\nEz a következőt jelenti: ha a C43 cella semmivel (\"\") egyenlő, akkor semmit ne adjon vissza, ellenkező esetben pedig az FKERES eredményét adja vissza. Figyelje meg, hogy a képlet végén egy második záró zárójel is található. Ez zárja le a HA utasítást.\n"]
["Ha nem biztos abban, hogy létezik-e a keresési érték, de így is ki szeretné küszöbölni a #HIÁNYZIK hiba megjelenését, használhat egy HAHIBA nevű hibakezelő függvényt a G43 cellában: =HAHIBA(FKERES(F43;F37:G41;2;HAMIS);\"\"). A HAHIBA függvény azt mondja, hogy ha az FKERES érvényes eredményt ad vissza, akkor az jelenjen meg, ellenkező esetben pedig semmi (\"\") ne jelenjen meg. Mi itt semmit (\"\") nem jelenítettünk meg, de ehelyett számokat (0,1, 2 stb.) vagy szöveget (például „A képlet helytelen”) is használhat.\n",null,"Gyümölcs","Mennyiség",null,"Húsáru","Mennyiség"]
["FONTOS RÉSZLET\nA HAHIBA olyan hibakezelő, amely minden hibaüzenetet elrejt, amelyet a képlet esetleg kiváltana. Ez problémákat okozhat akkor, ha az Excel értesítést jelenít meg arról, hogy a képletben egy szabályos, javítást igénylő hiba található.\n\nÁltalános szabályként elmondható, hogy a hibakezelők képletekben való használata mindaddig nem ajánlott, amíg teljes mértékben meg nem győződött azok megfelelő működéséről.",null,"Alma",50,null,"Marha",50]
["Előző",null,"Narancs",20,null,"Csirke",30]
["Következő",null,"Banán",60,null,"Sertés",10]
["További információ a weben",null,"Citrom",40,null,"Hal",50]
["Minden az FKERES függvényről"]
["Minden az INDEX/HOL.VAN függvényről",null,"Alma",null,null,"Sertés"]
["Minden a HAHIBA függvényről"]
["Kimutatás használata munkalapadatok elemzésére"]
["Ingyenes online Excel-képzés"]
{"$rows_empty":9}
[null,null,"Ha a SZUM függvény a D42 cellában beszélni tudna, ezt mondaná: Adja össze a D38, D39, D40 és D41 cellák értékét."]
[null,null,"Tétel","Mennyiség",null,"Tétel","Mennyiség"]
[null,null,"Kenyér",50,null,"Kenyér",50]
[null,null,"Fánk",100,null,"Fánk",100]
[null,null,"Sütemény",40,null,"Sütemény",40]
[null,null,"Torta",50,null,"Torta",50]
[null,null,"Pite",20,null,"Pite",20]
[]
[{"$nulls":3},{"$f":"VLOOKUP(C43,C37:D41,2,FALSE)","v":{"$error":"#N/A"}},null,"Péksütemény",{"$f":"IFERROR(VLOOKUP(F43,F37:G41,2,FALSE),\"\")","v":""}]

{"sheet":"Feltételes függvények","index":9,"n_rows":123,"n_cols":34,"rows_kept":123}
["Feltételes függvények – SZUMHA"]
["A feltételes függvényekkel elvégezheti egy tartomány összegzését, átlagának kiszámítását, továbbá megállapíthatja az átlagát, illetve a minimális vagy a maximális értékét, egy adott feltétel vagy egy Ön által megadott kritérium alapján. Kiderítheti például, hogy a listában szereplő összes gyümölcs között hány alma található. Vagy azt, hogy a narancsok közül hány tartozik a Florida típusba.",null,"Gyümölcs","Mennyiség",null,"Gyümölcs","Típus","Mennyiség",{"$nulls":17},"Gyümölcs",null,"Alma",null,"Narancs",null,"Banán",null,"Citrom"]
["A SZUMHA függvénnyel egy tartomány értékeit egy másik tartományban keresett, adott feltétel alapján összegezheti, megállapíthatja például, hogy mennyi az almák száma. Jelölje ki a D17 cellát, és írja be a következőt: =SZUMHA(C3:C14;C17;D3:D14). A SZUMHA szerkezete az alábbihoz hasonló:",null,"Alma",50,null,"Alma","Fuji",50,{"$nulls":17},"Alma",null,"Fuji",null,"Florida",null,"Cavendish",null,"Rough"]
["=SZUMHA(C3:C14;C17;D3:D14)",null,"Narancs",20,null,"Narancs","Florida",20,{"$nulls":17},"Narancs",null,"Honeycrisp",null,"Navel",null,"Lady Finger",null,"Eureka"]
["Az ellenőrizni kívánt tartomány",null,"Banán",60,null,"Banán","Cavendish",60,{"$nulls":17},"Banán"]
["A keresni kívánt érték (szöveg vagy szám)",null,"Citrom",40,null,"Citrom","Rough",40,{"$nulls":17},"Citrom"]
["Az egyes talált egyezésekhez összegzendő tartomány",null,"Alma",50,null,"Alma","Honeycrisp",50]
["A SZUMHATÖBB megegyezik a SZUMHA függvénnyel, azzal a különbséggel, hogy előbbi több feltétel használatát is lehetővé teszi. Ebben a példában tehát nemcsak a Gyümölcs, hanem a Gyümölcs és a Típus oszlopban is kereshet. Jelölje ki a H17 cellát, és írja be a következőt: =SZUMHATÖBB(H3:H14;F3:F14;F17;G3:G14;G17). A SZUMHATÖBB szerkezete az alábbihoz hasonló:\n",null,"Narancs",20,null,"Narancs","Navel",20]
["=SZUMHATÖBB(H3:H14;F3:F14;F17;G3:G14;G17)",null,"Banán",60,null,"Banán","Lady Finger",60]
["Az összegezni kívánt tartomány",null,"Citrom",40,null,"Citrom","Eureka",40]
["Ez az első tartomány az egyezések kereséséhez",null,"Alma",50,null,"Alma","Honeycrisp",50]
["Ez az első egyezés feltétele",null,"Narancs",20,null,"Narancs","Navel",20]
["Ez a második tartomány az egyezések kereséséhez",null,"Banán",60,null,"Banán","Cavendish",60]
["Ez a második egyezés feltétele",null,"Citrom",40,null,"Citrom","Eureka",40]
["SZAKÉRTŐI TIPP\nA Gyümölcs és a Típus cellák mindegyikéhez tartozik egy legördülő lista, amelyből kiválaszthatja a különböző gyümölcsöket. Próbálja ki, és figyelje meg, ahogyan a képletek automatikusan frissülnek."]
["Haladjon lefelé, ha kíváncsi a részletekre",null,"Gyümölcs","SZUMHA",null,"Gyümölcs","Típus","SZUMHATÖBB"]
["Következő lépés",null,"Alma",null,null,"Narancs","Florida"]
["Feltételes függvények – DARABTELI"]
["A DARABHA és a DARABHATÖBB függvénnyel megszámlálhatja az egy tartományban szereplő értékeket egy Ön által megadott feltétel alapján. Ezek kissé különböznek a többi HA és HATÖBB függvénytől, abban az értelemben, hogy előbbiek csak egy feltételtartományt és egy feltételt tartalmaznak. Nem úgy működnek, hogy egyetlen tartományt kiértékelnek, majd egy másik tartományt ellenőriznek az összegzéshez."]
["Jelölje ki a D64 cellát, és írja be a következőt: =DARABTELI(C50:C61;C64). A DARABTELI szerkezete az alábbihoz hasonló:"]
["=DARABTELI(C50:C61;C64)"]
["Az ellenőrizni kívánt tartomány"]
["A keresni kívánt érték (szöveg vagy szám)"]
["A DARABHATÖBB megegyezik a SZUMHA függvénnyel, azzal a különbséggel, hogy előbbi több feltétel használatát is lehetővé teszi. Ebben a példában tehát nemcsak a Gyümölcs, hanem a Gyümölcs és a Típus oszlopban is kereshet. Jelölje ki a H64 cellát, és írja be a következőt: =DARABHATÖBB(F50:F61;F64;G50:G61;G64). A DARABHATÖBB szerkezete az alábbihoz hasonló:\n"]
["=DARABHATÖBB(F50:F61;F64;G50:G61;G64)"]
["Ez az első megszámlálandó tartomány"]
["Ez az első egyezés feltétele"]
["Ez a második megszámlálandó tartomány"]
["Ez a második egyezés feltétele"]
["Haladjon lefelé, ha kíváncsi a részletekre"]
["Következő"]
["További feltételes függvények"]
["A SZUMHA, a SZUMHATÖBB, a DARABTELI és a DARABHATÖBB függvénnyel már megismerkedett. Most más függvényeket is kipróbálhat, mint amilyen például az ÁTLAGHA és az ÁTLAGHATÖBB, illetve a MAXHA és a MINHA. E függvények mindegyikének azonos a felépítése, így ha már egy képletet megírt, egyszerűen csak le kell cserélnie a függvény nevét a kívánt másik függvény nevére. Minden olyan függvényt megírtunk, amelyre szüksége lehet az E106 cellához. Ezeket a vágólapra másolhatja, majd beillesztheti a cellába, de gyakorlásként akár saját maga is megpróbálkozhat a beírásukkal.\n\nSZUMHA \t=SZUMHA(C92:C103;C106;E92:E103) \nSZUMHATÖBB \t=SZUMHATÖBB(E92:E103;C92:C103;C106;D92:D103;D106) \nÁTLAGHA \t=ÁTLAGHA(C92:C103;C106;E92:E103) \nÁTLAGHATÖBB\t=ÁTLAGHATÖBB(E92:E103;C92:C103;C106;D92:D103;D106)\nDARABTELI \t=DARABHA(C92:C103;C106)\nDARABHATÖBB \t=DARABHATÖBB(C92:C103;C106;D92:D103;D106) \nMAXHA \t=MAXHA(E92:E103;C92:C103;C106;D92:D103;D106)\nMINHA \t=MINHA(E92:E103;C92:C103;C106;D92:D103;D106)\n"]
["Haladjon lefelé, ha kíváncsi a részletekre"]
["Következő"]
["SZUMHA egy értékargumentummal"]
["Íme egy példa egy olyan SZUMHA függvényre, amely az összes olyan értéket hivatott megkeresni, amely nagyobb (>) egy adott összegnél:"]
[{"$f":"SUMIF(D118:D122,\">=50\")","v":200}]
["Összegezzen értékeket ezen kritérium alapján:"]
["...Ezekben a cellákban keressen...\n "]
["… és ha az érték nagyobb, mint 50, foglalja bele a számításba.\n "]
["MEGJEGYZÉS: Ha azon kapná magát, hogy túl sok feltételes képletet alkalmaz, fontolja meg egy kimutatás használatát. További információért olvassa el ezt a kimutatásokkal foglalkozó cikket."]
["További információ a weben"]
["Minden a SZUMHA függvényről"]
["Minden a SZUMHATÖBB függvényről"]
["Minden a DARABHA függvényről"]
["Minden a DARABHATÖBB függvényről"]
["Minden az ÁTLAGHA függvényről"]
["Minden az ÁTLAGHATÖBB függvényről",null,"Gyümölcs","Mennyiség",null,"Gyümölcs","Típus","Mennyiség"]
["Minden a MINHA függvényről",null,"Alma",50,null,"Alma","Fuji",50]
["Minden a MAXHA függvényről",null,"Narancs",20,null,"Narancs","Florida",20]
["Legördülő lista létrehozása",null,"Banán",60,null,"Banán","Cavendish",60]
["Ingyenes online Excel-képzés",null,"Citrom",40,null,"Citrom","Rough",40]
["Vissza a lap tetejére",null,"Alma",50,null,"Alma","Honeycrisp",50]
["Következő",null,"Narancs",20,null,"Narancs","Navel",20]
[null,null,"Banán",60,null,"Banán","Lady Finger",60]
[null,null,"Citrom",40,null,"Citrom","Eureka",40]
[null,null,"Alma",50,null,"Alma","Honeycrisp",50]
[null,null,"Narancs",20,null,"Narancs","Navel",20]
[null,null,"Banán",60,null,"Banán","Cavendish",60]
[null,null,"Citrom",40,null,"Citrom","Eureka",40]
[]
[null,null,"Gyümölcs","DARABTELI",null,"Gyümölcs","Típus","DARABHATÖBB"]
[null,null,"Alma",{"$f":"COUNTIF(C50:C61,C64)","v":3},null,"Narancs","Florida",{"$f":"COUNTIFS(F50:F61,F64,G50:G61,G64)","v":1}]
{"$rows_empty":26}
[null,null,"Gyümölcs","Típus","Mennyiség"]
[null,null,"Alma","Fuji",50]
[null,null,"Narancs","Florida",20]
[null,null,"Banán","Cavendish",60]
[null,null,"Citrom","Rough",40]
[null,null,"Alma","Honeycrisp",50]
[null,null,"Narancs","Navel",20]
[null,null,"Banán","Lady Finger",60]
[null,null,"Citrom","Eureka",40]
[null,null,"Alma","Honeycrisp",50]
[null,null,"Narancs","Navel",20]
[null,null,"Banán","Cavendish",60]
[null,null,"Citrom","Eureka",40]
[]
[null,null,"Gyümölcs","Típus","Kipróbálás"]
[null,null,"Citrom","Eureka",{"$f":"AVERAGEIFS(E92:E103,C92:C103,C106,D92:D103,D106)","v":40}]
{"$rows_empty":10}
[null,null,"Tétel","Mennyiség"]
[null,null,"Kenyér",50]
[null,null,"Fánk",100]
[null,null,"Sütemény",40]
[null,null,"Torta",50]
[null,null,"Pite",20]
[{"$nulls":3},{"$f":"SUMIF(D118:D122,\">=50\")","v":200}]

{"sheet":"Függvényvarázsló","index":10,"n_rows":14,"n_cols":4,"rows_kept":14}
["A Függvényvarázsló használata"]
["Ha tudja a kívánt függvény nevét, de nem biztos abban, hogy hogyan kell azt használni, segítségül hívhatja a Függvényvarázslót.\n"]
["Jelölje ki a D10 cellát, majd válassza a Képletek > Függvény beszúrása lehetőséget, írja be az FKERES függvényt a Függvény keresése mezőbe, majd kattintson a Keresés gombra. Amikor az FKERES függvény kiemelve látható, kattintson alul az OK gombra. Amikor kijelöl egy függvényt a listában, az Excel megjeleníti annak szintaxisát.\n"]
["Ezután írja be a függvény argumentumait a megfelelő mezőkbe. Miközben beírja őket, az Excel elvégzi a kiértékelésüket, és megjeleníti az eredményt, alul pedig a végleges eredményt. Miközben megadja az egyes szakaszokat, minden egyes argumentum feltétele megjelenik az űrlap alján lévő listában. Ha végzett, kattintson az OK gombra, és az Excel beírja Ön helyett a képletet.\n\n\n",null,"Gyümölcs","Mennyiség"]
["VESSEN ERRE EGY PILLANTÁST\nA végén a képletnek így kell kinéznie: =FKERES(C10;C5:D8;2;HAMIS)",null,"Alma",50]
["JÓ TUDNI\nA cella- és tartományhivatkozásokat beírhatja, vagy kiválaszthatja őket az egérrel.",null,"Narancs",20]
["JÓ TUDNI\nMiközben megadja az egyes argumentumok szakaszát, az űrlap alsó részén, a képlet eredménye fölött megjelenik az argumentum leírása.\n",null,"Banán",60]
["Előző",null,"Citrom",40]
["Következő"]
["További információ a weben",null,"Alma",{"$f":"VLOOKUP(C10,C5:D8,2,FALSE)","v":50}]
["A képletek áttekintése az Excelben"]
["Az Excel függvényeinek kategória szerinti listája"]
["Az Excel függvényeinek betűrendes listája"]
["Ingyenes online Excel-képzés"]

{"sheet":"Képlethibák","index":11,"n_rows":36,"n_cols":4,"rows_kept":36}
["Képlethibák kijavítása"]
["Valamikor Önnel is biztosan előfordul majd, hogy olyan képlettel találkozik, amelyben valamilyen hiba található. Az Excel ezt a következőképpen jelzi: #HibaNeve. A hibák hasznosak lehetnek, mivel rámutatnak arra, ha valami nem megfelelően működik, a kijavításuk azonban kihívást jelenthet. Szerencsére számos lehetőség áll rendelkezésre, amelyek segítenek megállapítani a hiba forrását, illetve kijavítani a hibát.\n"]
["Hibaellenőrzés – Válassza a Képletek > Hibaellenőrzés lehetőséget. Ezzel betöltődik egy párbeszédpanel, amely tájékoztatja Önt az adott hiba általános okáról. A D9 cellában az #HIÁNYZIK hiba oka, hogy nem található az „Alma” értékkel egyező érték. A hiba kijavításához használhat egy létező értéket, elrejtheti a hibát a HAHIBA függvénnyel, vagy figyelmen kívül hagyhatja, és az majd eltűnik akkor, amikor egy valóban létező értéket használ.\n",null,"Gyümölcs","Összeg"]
["Ha a Súgó erről a hibáról hivatkozásra kattint, azzal megnyitja az adott hibaüzenettel foglalkozó súgótémakört. A Számolási lépések megjelenítése elemre kattintva megjelenítheti a Képletkiértékelő párbeszédpanelt.\n",null,"Alma",50]
["Minden alkalommal, amikor a Kiértékelés gombra kattint, az Excel végiglépked a képleten szakaszonként. Nem feltétlenül fogja tájékoztatni a hiba okáról, de arról igen, hogy hol fordul elő a hiba. Innen a megfelelő súgótémakörhöz jutva kikövetkeztetheti, hogy mi a probléma a képlettel.\n",null,"Narancs",20]
["KÍSÉRLET\nMi a hiba? Tipp: A SZUM függvénnyel megkíséreljük összegezni az összes elemet.",null,"Banán",60]
["JÓ TUDNI\nA Beállítások elemre kattintva megadhatja azokat a szabályokat, amelyek az Excelben hibák megjelenésekor vagy mellőzésekor lépnek érvénybe.\n",null,"Citrom",40]
["Előző"]
["Következő",null,"Alma1",{"$f":"VLOOKUP(C9,C3:D7,2,FALSE)","v":{"$error":"#N/A"}}]
["További információ a weben"]
["A képlethibák feltárása"]
["Hibás képletek kiküszöbölése"]
["Beágyazott képlet kiértékelése lépésenként "]
["Ingyenes online Excel-képzés"]
{"$rows_empty":15}
[null,null,"Gyümölcs","Mennyiség"]
[null,null,"Alma",50]
[null,null,"Narancs",20]
[null,null,"Banán",60]
[null,null,"Citrom",40]
[]
[null,null,"Összesen",{"$f":"sume(D31:D34)","v":{"$error":"#NAME?"}}]

{"sheet":"További információ","index":12,"n_rows":5,"n_cols":1,"rows_kept":5}
["További kérdései vannak az Excelről?"]
["Nyomja le az ALT+M billentyűkombinációt, és írja be, mire kíváncsi."]
["Folytassa. Az Excel számos lehetőséget rejt:"]
["Közösség: Kérdezzen, és ismerkedjen más Excel-rajongókkal.\n"]
["Mi új még?\nAz Office 365-előfizetők folyamatosan frissítésekhez és új funkciókhoz jutnak.\n\n"]